bitfinex/quotes_SOLUSD_20260109
["timestamp","ask_amount","ask_price","bid_price","bid_amount"]
[1767984379423,14.06130221,136.61,136.54,0.69298773]
[1767984381752,0.68130221,136.61,136.56,7.32269503]
[1767984382846,0.68130221,136.6,136.56,7.32269503]
[1767984383651,13.38,136.59,136.56,7.32269503]
[1767984384346,13.38,136.59,136.54,18.30905463]
[1767984384347,0.68130221,136.58,136.54,7.3235198]
[1767984385356,0.68130221,136.58,136.51,0.69298773]
[1767984385656,0.68130221,136.58,136.52,7.32466374]
[1767984385831,0.68130221,136.57,136.52,7.32466374]
[1767984387051,0.68130221,136.57,136.52,0.69298773]
[1767984387558,0.68130221,136.59,136.52,0.69298773]
[1767984387856,7.31635937,136.68,136.54,0.69298773]
[1767984388160,25.60725781,136.68,136.56,0.69298773]
[1767984388345,7.31635937,136.68,136.58,0.69298773]
[1767984388855,20.89595164,136.69,136.6,0.69298773]
[1767984389153,0.2,136.69,136.62,0.69298773]
[1767984390463,0.68130221,136.67,136.62,0.69298773]
[1767984391753,7.99824194,136.67,136.62,8.01246383]
[1767984393354,0.65815181,136.65,136.6,0.71840222]
[1767984393861,0.65815181,136.65,136.6,8.03874101]
[1767984394060,0.65815181,136.65,136.58,19.02204981]
[1767984394359,0.65815181,136.65,136.59,8.03928432]
[1767984394774,0.65815181,136.65,136.57,8.0403398]
[1767984395644,0.65815181,136.62,136.57,0.71840222]
[1767984396653,0.65815181,136.59,136.51,0.71840222]
[1767984396838,0.65815181,136.56,136.5,7.32581409]
[1767984397048,0.65815181,136.56,136.47,0.71840222]
[1767984397273,0.65815181,136.54,136.49,7.32651727]
[1767984397637,0.28432314,136.55,136.49,0.71840222]
[1767984397960,0.94247495,136.56,136.49,0.71840222]
[1767984398140,0.65815181,136.55,136.49,0.71840222]
[1767984398345,0.63039463,136.55,136.49,0.71840222]
[1767984400065,0.28432314,136.53,136.46,0.71840222]
[1767984400567,0.65815181,136.52,136.46,8.04620288]
[1767984401851,0.65815181,136.52,136.47,7.32747917]
[1767984402054,7.98310536,136.52,136.46,8.0464075]
[1767984403166,0.65815181,136.51,136.44,21.40750503]
[1767984403370,0.65815181,136.51,136.45,0.71840222]
[1767984403593,0.65815181,136.5,136.43,0.71840222]
[1767984403875,7.98469587,136.49,136.43,8.04778745]
[1767984404167,0.65815181,136.49,136.44,0.71840222]
[1767984405247,0.65815181,136.49,136.44,8.04731985]
[1767984405464,0.65815181,136.49,136.45,0.71840222]
[1767984405846,0.65815181,136.49,136.43,18.32441545]
[1767984405847,0.65815181,136.49,136.43,0.71840222]
[1767984406175,0.65815181,136.48,136.43,0.71840222]
[1767984406354,0.65815181,136.48,136.43,8.04799468]
[1767984406673,7.98479189,136.49,136.44,8.047554]
[1767984406968,7.98479189,136.49,136.44,0.71840222]
[1767984408263,0.65815181,136.49,136.44,8.04756357]
[1767984408461,7.98470172,136.49,136.44,8.04756357]
[1767984410891,8.33101641,136.5,136.45,0.70091675]
[1767984411674,0.7205019,136.49,136.45,0.70091675]
[1767984412067,8.04712637,136.49,136.45,0.70091675]
[1767984412666,8.04712637,136.49,136.44,7.32918573]
[1767984412667,0.7205019,136.48,136.41,19.02756986]
[1767984412877,0.7205019,136.48,136.42,0.70091675]
[1767984413486,0.7205019,136.47,136.4,13.48]
[1767984413661,0.7205019,136.47,136.41,8.03133477]
[1767984414074,0.28432314,136.48,136.41,8.03133477]
[1767984414075,0.7205019,136.45,136.41,0.70091675]
[1767984414277,0.7205019,136.45,136.4,20.81124133]
[1767984414457,0.7205019,136.45,136.4,21.51215808]
[1767984416182,0.7205019,136.45,136.41,8.03142883]
[1767984417587,0.7205019,136.44,136.4,20.81133832]
[1767984418380,0.7205019,136.44,136.4,21.51225507]
[1767984418985,0.7205019,136.46,136.41,0.70091675]
[1767984419190,14.38482504,136.48,136.41,0.70091675]
[1767984419667,0.7205019,136.47,136.41,0.70091675]
[1767984420164,8.04822456,136.47,136.42,8.03122022]
[1767984421586,8.04822456,136.47,136.43,0.70091675]
[1767984422785,8.04629579,136.51,136.44,0.70091675]
[1767984422960,0.68259758,136.5,136.44,0.70091675]
[1767984423380,0.82475915,136.5,136.44,0.70091675]
[1767984423579,0.68259758,136.49,136.44,0.70091675]
[1767984424689,7.32708089,136.48,136.44,0.70091675]
[1767984425093,8.00937871,136.49,136.44,8.03011107]
[1767984425393,0.68259758,136.47,136.42,0.72492786]
[1767984425694,0.68259758,136.47,136.43,0.72492786]
[1767984426868,0.68259758,136.47,136.43,8.05459192]
[1767984427204,14.06259758,136.49,136.44,0.72492786]
[1767984427691,0.68259758,136.49,136.44,0.72492786]
[1767984427889,0.68259758,136.5,136.44,0.72492786]
[1767984428387,8.0083088,136.51,136.44,0.72492786]
[1767984428763,8.0083088,136.51,136.45,7.32869182]
[1767984428969,8.0083088,136.51,136.46,0.72492786]
[1767984429282,26.32198545,136.51,136.46,0.72492786]
[1767984430792,8.0083088,136.51,136.46,0.72492786]
[1767984433576,0.68259758,136.5,136.46,0.72492786]
[1767984434672,0.68259758,136.5,136.45,0.72492786]
[1767984435705,0.68259758,136.5,136.46,0.72492786]
[1767984436997,19.98571715,136.51,136.46,12.70227658]
[1767984437188,105.18259758,136.55,136.5,0.72492786]
[1767984437497,8.0068444,136.54,136.5,0.72492786]
[1767984437679,19.98419312,136.54,136.5,0.72492786]
[1767984437992,0.68259758,136.54,136.49,0.72492786]
[1767984438190,12.6599463,136.53,136.49,0.72492786]
[1767984438396,0.68259758,136.52,136.48,0.72492786]
[1767984438700,0.68259758,136.52,136.48,8.05182034]
[1767984439087,0.68259758,136.53,136.49,8.05129715]
[1767984439499,0.68259758,136.53,136.49,0.72492786]
[1767984439686,0.68259758,136.52,136.48,20.02920888]
[1767984440001,0.68259758,136.52,136.49,7.32653642]
[1767984440175,0.68259758,136.52,136.48,12.70227658]
[1767984441400,0.68259758,136.53,136.49,8.05116599]
[1767984441603,0.68259758,136.59,136.53,0.72492786]
[1767984441811,0.68259758,136.59,136.56,11.97734872]
[1767984442095,0.68259758,136.59,136.54,14.10492786]
[1767984442096,0.68259758,136.57,136.53,11.97734872]
[1767984443100,0.68259758,136.57,136.53,19.30125152]
[1767984445672,0.68259758,136.57,136.53,20.02617938]
[1767984446075,0.68259758,136.57,136.54,11.97734872]
[1767984446304,0.68259758,136.57,136.53,7.3239028]
[1767984446472,0.68259758,136.57,136.53,19.30125152]
[1767984447402,0.68259758,136.57,136.54,11.97734872]
[1767984447895,0.68259758,136.57,136.54,19.30120144]
[1767984448407,0.68259758,136.61,136.56,11.97734872]
[1767984448585,0.68259758,136.61,136.58,11.97734872]
[1767984448903,0.68259758,136.61,136.55,14.10492786]
[1767984449080,11.97734872,136.61,136.56,12.70227658]
[1767984449286,12.6599463,136.61,136.57,0.72492786]
[1767984449602,12.6599463,136.61,136.55,32.68060836]
[1767984449603,0.68259758,136.59,136.55,32.68060836]
[1767984449975,0.68259758,136.59,136.55,33.40553622]
[1767984450480,0.68259758,136.59,136.55,28.78874394]
[1767984450994,8.00280302,136.61,136.56,8.0854843]
[1767984451195,0.68259758,136.61,136.57,8.0854843]
[1767984452182,0.68259758,136.58,136.55,13.38]
[1767984452392,7.36055644,136.59,136.55,20.70317817]
[1767984452589,0.68259758,136.6,136.56,8.0854843]
[1767984453212,0.68259758,136.6,136.56,15.40826787]
[1767984453387,0.68259758,136.6,136.56,8.04771143]
[1767984453588,15.36402534,136.6,136.56,0.72492786]
[1767984454008,7.36055644,136.59,136.56,0.72492786]
[1767984454415,15.36402534,136.6,136.56,0.72492786]
[1767984455416,7.36055644,136.59,136.56,0.72492786]
[1767984455818,8.04315402,136.6,136.56,0.72492786]
[1767984455996,0.68259758,136.6,136.56,8.047582]
[1767984456204,8.06733918,136.59,136.55,20.70330097]
[1767984456509,3.59250523,136.59,136.55,21.39487381]
[1767984456813,0.70678274,136.59,136.55,21.39487381]
[1767984457011,0.70678274,136.59,136.56,7.32277304]
[1767984457515,10.91285159,136.61,136.57,0.69157284]
[1767984458535,0.70678274,136.63,136.58,0.69157284]
[1767984458811,3.59250523,136.63,136.59,0.69157284]
[1767984459009,2.88572249,136.62,136.59,0.69157284]
[1767984460813,3.59250523,136.62,136.58,21.37321315]
[1767984461057,2.88572249,136.6,136.58,13.36]
[1767984461519,2.88572249,136.6,136.55,2.88572249]
[1767984461520,2.88572249,136.59,136.56,14.05157284]
[1767984461816,2.88572249,136.59,136.56,13.36]
[1767984463025,10.20691782,136.59,136.56,13.36]
[1767984464041,2.88572249,136.58,136.55,14.05157284]
[1767984464325,2.88572249,136.58,136.55,0.69157284]
[1767984464531,8.02797807,136.59,136.55,0.69157284]
[1767984464716,2.88572249,136.58,136.55,0.69157284]
[1767984466063,3.59250523,136.57,136.54,13.36]
[1767984466911,0.70678274,136.56,136.54,13.36]
[1767984467113,2.88572249,136.57,136.54,13.36]
[1767984467320,3.59250523,136.57,136.54,13.36]
[1767984467515,3.59250523,136.57,136.53,14.05157284]
[1767984468224,2.88572249,136.57,136.54,0.69157284]
[1767984468426,10.9147105,136.58,136.54,0.69157284]
[1767984469237,7.32220527,136.58,136.54,0.69157284]
[1767984469411,10.20792776,136.58,136.54,0.69157284]
[1767984469731,10.87249419,136.58,136.54,0.69157284]
[1767984470824,7.32133928,136.59,136.55,0.68776677]
[1767984471027,2.88572249,136.59,136.55,0.68776677]
[1767984471337,0.66456643,136.6,136.55,0.68776677]
[1767984471338,108.05028892,136.62,136.57,0.68776677]
[1767984471637,0.66456643,136.61,136.57,0.68776677]
[1767984471837,3.55028892,136.61,136.57,0.68776677]
[1767984472039,0.66456643,136.61,136.57,0.68776677]
[1767984472344,0.66456643,136.59,136.55,14.04776677]
[1767984472521,3.55028892,136.6,136.56,0.68776677]
[1767984472833,3.55028892,136.6,136.56,8.01032247]
[1767984473561,3.55028892,136.61,136.57,0.68776677]
[1767984474340,0.66456643,136.63,136.57,0.68776677]
[1767984474556,3.55028892,136.62,136.57,0.68776677]
[1767984475837,3.55028892,136.62,136.57,8.00949525]
[1767984476619,2.88572249,136.61,136.57,8.00949525]
[1767984478325,2.88572249,136.61,136.58,0.68776677]
[1767984478522,0.66456643,136.64,136.59,0.68776677]
[1767984478727,0.66456643,136.65,136.6,0.68776677]
[1767984478947,3.55028892,136.65,136.6,0.68776677]
[1767984479147,3.55028892,136.65,136.61,14.04776677]
[1767984479342,0.66456643,136.64,136.61,13.36]
[1767984479540,2.88572249,136.64,136.61,13.36]
[1767984480552,2.88572249,136.63,136.61,13.36]
[1767984480846,2.88572249,136.62,136.61,13.36]
[1767984481231,2.88572249,136.62,136.59,20.6811398]
[1767984481446,0.66456643,136.64,136.6,8.00809749]
[1767984481643,3.55028892,136.64,136.6,8.00809749]
[1767984482750,2.88572249,136.63,136.6,8.00809749]
[1767984483330,0.66456643,136.64,136.6,8.00809749]
[1767984483532,3.55028892,136.64,136.6,8.00809749]
[1767984483949,0.72176558,136.65,136.6,8.00809749]
[1767984484255,3.60748807,136.65,136.61,0.66594197]
[1767984484548,2.88572249,136.66,136.62,0.66594197]
[1767984484733,10.92473555,136.67,136.62,16.91166446]
[1767984485048,0.72176558,136.68,136.64,3.55166446]
[1767984485349,3.60748807,136.68,136.64,0.66594197]
[1767984488445,10.92417745,136.68,136.64,0.66594197]
[1767984488643,2.88572249,136.67,136.64,0.66594197]
[1767984490050,2.88572249,136.67,136.63,7.31866538]
[1767984490051,3.60748807,136.67,136.63,21.34460735]
[1767984490963,0.72176558,136.64,136.61,7.32003098]
[1767984491253,3.60748807,136.64,136.61,13.36]
[1767984491552,3.60748807,136.64,136.6,7.98658491]
[1767984491553,3.60748807,136.64,136.6,0.66594197]
[1767984492858,0.72176558,136.65,136.61,0.66594197]
[1767984493035,0.72176558,136.64,136.6,10.87223927]
[1767984493539,10.9256701,136.65,136.61,0.66594197]
[1767984493734,1.00608872,136.68,136.61,0.66594197]
[1767984493946,0.2,136.69,136.66,0.66594197]
[1767984494844,0.2,136.69,136.65,2.88572249]
[1767984495150,0.2,136.69,136.65,16.24572249]
[1767984495353,0.2,136.69,136.65,23.5635879]
[1767984495657,0.92176558,136.69,136.65,23.5635879]
[1767984496163,0.92176558,136.69,136.65,24.22952987]
[1767984498746,0.92176558,136.69,136.65,16.24572249]
[1767984499040,0.72176558,136.68,136.65,13.36]
[1767984499240,10.92394199,136.68,136.65,13.36]
[1767984500053,0.72176558,136.68,136.65,13.36]
[1767984500357,3.60748807,136.68,136.65,13.36]
[1767984501946,2.88572249,136.67,136.64,7.98424579]
[1767984502662,2.88572249,136.67,136.64,0.66594197]
[1767984503970,3.80748807,136.69,136.65,7.98382672]
[1767984504169,0.72176558,136.68,136.65,7.31788475]
[1767984504763,0.2,136.69,136.67,0.66594197]
[1767984505081,0.72176558,136.68,136.66,13.36]
[1767984505381,1e-08,136.69,136.66,16.91166446]
[1767984505553,0.2,136.74,136.69,0.66594197]
[1767984505748,0.2,136.74,136.7,0.66594197]
[1767984505954,3.08572249,136.74,136.7,7.98107172]
[1767984506270,3.08572249,136.74,136.71,0.66594197]
[1767984507545,3.60748807,136.72,136.69,0.66594197]
[1767984507745,2.88572249,136.72,136.69,14.02594197]
[1767984507974,2.88572249,136.71,136.69,13.36]
[1767984508472,3.60748807,136.72,136.69,13.36]
[1767984508673,2.88572249,136.72,136.69,14.02594197]
[1767984510577,8.23496731,136.74,136.7,0.66594197]
[1767984510873,3.08572249,136.74,136.7,0.66594197]
[1767984511577,2.88572249,136.73,136.7,0.66594197]
[1767984511775,0.92176558,136.74,136.7,7.98103236]
[1767984511954,3.80748807,136.74,136.7,7.98103236]
[1767984512364,3.80748807,136.74,136.71,0.66594197]
[1767984512563,5.42088179,136.74,136.71,0.66594197]
[1767984512958,0.2,136.74,136.71,0.66594197]
[1767984513182,4.49911621,136.73,136.7,7.97388356]
[1767984514158,5.16620609,136.73,136.7,0.6588115]
[1767984514482,4.49911621,136.72,136.69,14.0188115]
[1767984515076,5.16620609,136.72,136.68,0.6588115]
[1767984515373,0.66708988,136.71,136.69,4.49911621]
[1767984516277,7.98096745,136.73,136.7,4.49911621]
[1767984516485,0.66708988,136.72,136.7,4.49911621]
[1767984517968,7.98134759,136.72,136.7,4.49911621]
[1767984518170,12.4804638,136.72,136.68,14.0188115]
[1767984519087,5.16620609,136.7,136.68,13.36]
[1767984519560,0.66708988,136.7,136.68,13.36]
[1767984519964,5.16620609,136.7,136.66,7.97620535]
[1767984520165,0.66708988,136.7,136.68,4.49911621]
[1767984520584,0.66708988,136.69,136.66,13.36]
[1767984520763,0.66708988,136.69,136.67,4.49911621]
[1767984521170,0.66708988,136.69,136.66,17.85911621]
[1767984521369,0.66708988,136.68,136.66,17.85911621]
[1767984521684,0.66708988,136.68,136.66,4.49911621]
[1767984522378,0.66708988,136.68,136.67,4.49911621]
[1767984522768,0.66708988,136.68,136.65,0.6588115]
[1767984523094,0.66708988,136.68,136.66,4.49911621]
[1767984523872,7.98346197,136.68,136.66,4.49911621]
[1767984524592,0.66708988,136.72,136.68,0.6588115]
[1767984524777,0.66708988,136.72,136.69,4.49911621]
[1767984524966,0.80925145,136.72,136.69,4.49911621]
[1767984525289,0.80925145,136.72,136.68,4.49911621]
[1767984525290,0.66708988,136.71,136.68,4.49911621]
[1767984525677,7.98198156,136.71,136.68,4.49911621]
[1767984525879,0.66708988,136.71,136.68,4.49911621]
[1767984526111,0.66708988,136.71,136.68,5.15792771]
[1767984526391,7.98081128,136.73,136.7,4.49911621]
[1767984526694,0.66708988,136.72,136.69,4.49911621]
[1767984529584,0.66708988,136.72,136.7,4.49911621]
[1767984530596,0.66708988,136.72,136.69,7.31577564]
[1767984530912,0.2,136.74,136.71,5.19563971]
[1767984531193,0.88733759,136.75,136.74,0.6965235]
[1767984531194,0.2,136.75,136.74,0.6965235]
[1767984531395,0.2,136.76,136.74,14.0565235]
[1767984533694,0.2,136.76,136.74,0.6965235]
[1767984534006,5.1864538,136.75,136.72,14.0565235]
[1767984534905,5.3864538,136.76,136.72,21.37072925]
[1767984536404,4.69911621,136.76,136.73,0.6965235]
[1767984537309,0.2,136.76,136.73,0.6965235]
[1767984537600,4.69911621,136.77,136.75,0.6965235]
[1767984537789,0.2,136.77,136.75,0.6965235]
[1767984538186,0.2,136.77,136.74,8.00966073]
[1767984538390,4.69911621,136.77,136.74,8.00966073]
[1767984538582,4.69911621,136.77,136.75,14.0565235]
[1767984540396,0.2,136.77,136.75,14.0565235]
[1767984540701,4.69911621,136.77,136.75,14.0565235]
[1767984541121,4.49911621,136.76,136.75,13.36]
[1767984541406,4.49911621,136.76,136.72,8.01068152]
[1767984541600,4.49911621,136.74,136.72,8.01068152]
[1767984541808,4.49911621,136.74,136.72,0.6965235]
[1767984542009,4.49911621,136.73,136.72,0.6965235]
[1767984542190,4.49911621,136.74,136.72,0.6965235]
[1767984542388,4.49911621,136.73,136.72,0.6965235]
[1767984542588,4.49911621,136.73,136.71,7.31464635]
[1767984542804,4.49911621,136.74,136.71,0.6965235]
[1767984543003,7.31232905,136.76,136.72,0.67500777]
[1767984543303,7.31232905,136.76,136.72,7.98907858]
[1767984543304,4.49911621,136.74,136.72,7.98907858]
[1767984543609,4.49911621,136.75,136.72,7.98907858]
[1767984544705,4.49911621,136.75,136.72,0.67500777]
[1767984544892,4.49911621,136.74,136.7,7.99008687]
[1767984545200,0.70672863,136.75,136.71,7.98974181]
[1767984545409,4.49911621,136.74,136.71,7.98974181]
[1767984545705,0.2,136.77,136.74,0.67500777]
[1767984546016,0.17,136.77,136.74,0.67500777]
[1767984546587,0.17,136.77,136.74,7.98813051]
[1767984547700,0.17,136.77,136.74,0.67500777]
[1767984547906,0.17,136.77,136.74,7.98812108]
[1767984548094,0.14000001,136.77,136.74,7.98812108]
[1767984548298,0.2,136.78,136.75,0.67500777]
[1767984548692,0.2,136.78,136.75,7.98728817]
[1767984548889,0.2,136.79,136.77,0.67500777]
[1767984550903,0.2,136.79,136.77,7.98652966]
[1767984552093,0.2,136.8,136.77,7.98652966]
[1767984552998,0.90672863,136.8,136.76,7.98689554]
[1767984553198,5.40584484,136.8,136.76,7.98689554]
[1767984553599,5.20584484,136.77,136.73,7.31326216]
[1767984553914,4.49911621,136.76,136.73,7.98826993]
[1767984554115,5.20584484,136.77,136.73,7.98826993]
[1767984554623,0.70672863,136.77,136.73,7.98826993]
[1767984554914,5.20584484,136.77,136.73,7.98826993]
[1767984555220,0.70672863,136.77,136.73,7.98826993]
[1767984555405,5.20584484,136.77,136.73,7.98826993]
[1767984556219,4.49911621,136.76,136.73,7.98826993]
[1767984557204,0.70672863,136.76,136.72,7.98899702]
[1767984557404,5.20584484,136.76,136.73,7.31364935]
[1767984557714,0.70672863,136.76,136.73,7.31364935]
[1767984558108,0.70672863,136.75,136.73,7.31364935]
[1767984559128,0.70672863,136.75,136.73,4.49911621]
[1767984559500,4.49911621,136.78,136.73,4.49911621]
[1767984560724,0.2,136.8,136.76,4.49911621]
[1767984561124,0.2,136.8,136.77,4.49911621]
[1767984561306,0.2,136.8,136.78,0.67500777]
[1767984562220,0.2,136.8,136.79,0.67500777]
[1767984562407,0.2,136.8,136.78,7.31048254]
[1767984562612,0.90672863,136.8,136.78,7.31048254]
[1767984563010,0.12816976,136.8,136.78,11.80959875]
[1767984563203,0.12816976,136.8,136.78,12.48460652]
[1767984563403,0.12816976,136.8,136.78,11.80959875]
[1767984563632,0.12816976,136.8,136.78,7.31048254]
[1767984565014,0.12816976,136.8,136.78,11.80959875]
[1767984565418,0.2,136.81,136.78,11.80959875]
[1767984566322,0.90672863,136.81,136.77,12.48548632]
[1767984566524,0.70672863,136.8,136.77,7.31136234]
[1767984567722,0.90672863,136.81,136.77,7.98637011]
[1767984567921,5.40584484,136.81,136.77,7.98637011]
[1767984568112,4.69911621,136.81,136.78,0.67500777]
[1767984568923,5.40584484,136.81,136.77,7.98637011]
[1767984569105,5.40584484,136.81,136.77,7.31136234]
[1767984569311,5.40584484,136.81,136.78,0.67500777]
[1767984570020,0.90672863,136.81,136.78,0.67500777]
[1767984570226,4.69911621,136.81,136.78,0.67500777]
[1767984570420,5.20584484,136.8,136.76,7.98683194]
[1767984571326,12.51578815,136.8,136.76,0.67500777]
[1767984572230,5.20584484,136.79,136.76,0.67500777]
[1767984572611,0.70672863,136.79,136.76,0.67500777]
[1767984573623,0.65468664,136.8,136.76,12.48589311]
[1767984574022,8.16416171,136.81,136.77,0.6974531]
[1767984574224,12.66327792,136.81,136.77,0.6974531]
[1767984574527,3.73121314,136.81,136.77,0.6974531]
[1767984574733,3.73121314,136.81,136.77,8.0088575]
[1767984575827,0.65468664,136.8,136.77,0.6974531]
[1767984576033,3.53121314,136.8,136.76,0.6974531]
[1767984576435,3.73121314,136.81,136.77,8.00862022]
[1767984576631,0.85468664,136.81,136.77,8.00862022]
[1767984576839,3.73121314,136.81,136.77,8.00862022]
[1767984577335,0.2,136.81,136.78,0.6974531]
[1767984578826,0.2,136.81,136.78,8.00843568]
[1767984580136,0.2,136.81,136.78,0.6974531]
[1767984580534,0.2,136.81,136.78,8.00844166]
[1767984584438,0.5843083,136.82,136.81,0.6974531]
[1767984584742,0.55430831,136.82,136.79,0.6974531]
[1767984585144,0.65468664,136.81,136.76,2.8765265]
[1767984585327,3.53121314,136.81,136.78,7.31099279]
[1767984585527,3.53121314,136.81,136.78,0.6974531]
[1767984585727,0.65468664,136.81,136.78,0.6974531]
[1767984586749,4.08552145,136.82,136.78,0.6974531]
[1767984587837,4.08552145,136.82,136.78,8.00838798]
[1767984587838,1.20899495,136.82,136.78,8.00838798]
[1767984590045,1.20899495,136.82,136.79,0.65460356]
[1767984590252,0.55430831,136.82,136.79,0.65460356]
[1767984591352,1.26204401,136.82,136.79,0.65460356]
[1767984593537,1.26204401,136.82,136.79,7.96504621]
[1767984596160,1.26204401,136.82,136.79,0.65460356]
[1767984596446,4.13857051,136.82,136.79,0.65460356]
[1767984597235,1.26204401,136.82,136.79,0.65460356]
[1767984597553,4.13857051,136.82,136.79,0.65460356]
[1767984598540,4.13857051,136.82,136.78,7.96535446]
[1767984599056,3.5842622,136.8,136.76,7.96668311]
[1767984599234,0.7077357,136.79,136.76,7.96668311]
[1767984599433,2.8765265,136.81,136.77,0.65460356]
[1767984599637,0.55430831,136.82,136.77,0.65460356]
[1767984599638,3.43083481,136.82,136.77,0.65460356]
[1767984599837,3.43083481,136.82,136.77,3.53113006]
[1767984600248,0.55430831,136.82,136.77,0.65460356]
[1767984600441,3.43083481,136.82,136.78,0.65460356]
[1767984600635,0.55430831,136.82,136.79,0.65460356]
[1767984601342,1.26204401,136.82,136.79,0.65460356]
[1767984602142,1.26204401,136.82,136.79,7.96504393]
[1767984602560,4.13857051,136.82,136.78,7.96542223]
[1767984602762,0.7077357,136.81,136.77,7.96591853]
[1767984602972,4.1141255,136.82,136.78,7.99204578]
[1767984603839,0.55430831,136.82,136.8,0.68107034]
[1767984604547,0.55430831,136.82,136.79,3.55759684]
[1767984604752,0.55430831,136.82,136.79,0.68107034]
[1767984604960,0.68329069,136.8,136.76,14.02107034]
[1767984605164,7.86323236,136.82,136.77,7.99260778]
[1767984605364,2.8765265,136.8,136.77,0.68107034]
[1767984605576,0.28432314,136.81,136.74,0.68107034]
[1767984605751,2.8765265,136.78,136.75,0.68107034]
[1767984606363,2.8765265,136.79,136.76,0.68107034]
[1767984606864,2.8765265,136.78,136.76,0.68107034]
[1767984607057,2.8765265,136.78,136.75,0.68107034]
[1767984608865,10.47546326,136.78,136.75,0.68107034]
[1767984609288,0.675458,136.75,136.71,0.68107034]
[1767984609464,3.49198447,136.75,136.71,0.68107034]
[1767984609777,2.8765265,136.75,136.72,0.68107034]
[1767984610557,2.8765265,136.75,136.71,0.68107034]
[1767984610873,2.8765265,136.73,136.7,0.68107034]
[1767984611475,3.55981719,136.74,136.7,7.99622486]
[1767984611654,0.68329069,136.74,136.71,0.68107034]
[1767984616864,3.55981719,136.74,136.7,7.99622486]
[1767984617272,0.68329069,136.74,136.7,7.99622486]
[1767984617574,3.55981719,136.74,136.7,7.99622486]
[1767984619380,3.10484647,136.73,136.69,7.99683005]
[1767984619584,2.8765265,136.72,136.69,0.68107034]
[1767984619884,3.10484647,136.73,136.69,7.99688226]
[1767984621860,0.22831997,136.73,136.69,7.99688226]
[1767984622061,3.10484647,136.73,136.69,7.99688226]
[1767984623182,3.55981719,136.75,136.7,0.68107034]
[1767984623383,3.55981719,136.75,136.71,0.68107034]
[1767984623765,3.55981719,136.75,136.71,7.99575857]
[1767984624384,10.87245105,136.75,136.71,0.68107034]
[1767984625076,2.8765265,136.74,136.71,0.68107034]
[1767984625458,3.55526749,136.73,136.7,0.68107034]
[1767984625664,3.55526749,136.73,136.69,0.68107034]
[1767984625980,3.55526749,136.73,136.69,7.99654448]
[1767984626173,3.10935068,136.72,136.69,0.68107034]
[1767984626485,2.8765265,136.72,136.69,0.68107034]
[1767984626780,2.8765265,136.72,136.69,7.99686274]
[1767984627358,3.55526749,136.71,136.67,0.68107034]
[1767984627563,7.31400444,136.73,136.64,7.16443384]
[1767984627564,0.23723875,136.68,136.64,0.88107034]
[1767984627764,2.8765265,136.69,136.65,7.99872231]
[1767984628071,2.8765265,136.7,136.65,10.87524881]
[1767984628879,2.8765265,136.7,136.65,26.29363632]
[1767984629080,2.8765265,136.7,136.65,29.17016282]
[1767984629679,3.55981719,136.7,136.65,29.17016282]
[1767984629877,0.68329069,136.7,136.66,0.68107034]
[1767984630080,7.31392846,136.73,136.69,3.55759684]
[1767984630081,0.68329069,136.73,136.69,3.55759684]
[1767984630283,0.68329069,136.74,136.7,3.55759684]
[1767984630985,0.68329069,136.74,136.7,7.99625145]
[1767984633190,2.8765265,136.74,136.7,8.02470164]
[1767984633383,2.8765265,136.74,136.71,0.70952053]
[1767984634089,8.00864688,136.75,136.71,0.70952053]
[1767984634290,2.8765265,136.74,136.71,0.70952053]
[1767984634494,4.49882348,136.74,136.71,0.70952053]
[1767984636700,8.00864688,136.75,136.71,0.70952053]
[1767984636901,4.49882348,136.74,136.71,0.70952053]
[1767984637379,12.50747036,136.75,136.71,0.70952053]
[1767984638608,4.49882348,136.74,136.71,0.70952053]
[1767984639181,0.69595291,136.77,136.72,12.52256285]
[1767984639392,0.69595291,136.78,136.73,5.20834401]
[1767984639704,0.18608435,136.77,136.73,5.20834401]
[1767984640301,0.18608435,136.77,136.73,12.52160748]
[1767984641219,0.18608435,136.79,136.76,0.70952053]
[1767984641503,0.18608435,136.79,136.75,4.49882348]
[1767984641994,0.18608435,136.79,136.74,5.20834401]
[1767984642610,0.18608435,136.79,136.75,11.81143773]
[1767984642808,0.18608435,136.79,136.75,12.52095826]
[1767984643312,0.18608435,136.79,136.75,30.8024939]
[1767984643609,0.18608435,136.79,136.75,30.09297337]
[1767984644001,0.69595291,136.81,136.77,5.20834401]
[1767984644208,0.69595291,136.81,136.78,4.49882348]
[1767984644515,1.25026122,136.82,136.79,4.49882348]
[1767984644807,0.55430831,136.82,136.8,7.30994152]
[1767984645002,1e-08,136.82,136.8,12.51828553]
[1767984645206,1e-08,136.83,136.81,4.49882348]
[1767984645515,1e-08,136.83,136.81,5.20834401]
[1767984645697,1e-08,136.83,136.82,5.20834401]
[1767984645890,0.2,136.86,136.83,0.70952053]
[1767984646306,0.44548435,136.86,136.81,4.49882348]
[1767984646691,0.44548435,136.86,136.82,7.30887297]
[1767984647101,0.44548435,136.86,136.82,11.80769645]
[1767984647295,0.44548435,136.86,136.81,7.30923809]
[1767984647296,0.69144822,136.85,136.81,7.30923809]